[Event "58th Akiba Rubinstein C 2022"]
[Site "Polanica-Zdroj"]
[Date "2022.08.16"]
[Round "4.2"]
[White "Pyka, Roman"]
[Black "Shilov, Sergej"]
[Result "0-1"]
[ECO "A46"]
[WhiteElo "1881"]
[BlackElo "2048"]
[Annotator "NA RC"]
[PlyCount "76"]
[EventDate "2022.08.13"]
[EventCountry "POL"]
[SourceTitle "playchess.com"]
[Source "ChessBase"]
[SourceQuality "1"]
[TimeControl "40/5400+30:1800+30"]

1. d4 {[%emt 0:00:08]} Nf6 {[%emt 0:01:17]} 2. Nf3 {[%emt 0:00:37]} c5 {[%emt 0:01:08]} 3. c4 {[%emt 0:01:15]} cxd4 {[%emt 0:00:27]} 4. Nxd4 {[%emt 0:00:10]} e5 {[%emt 0:00:02]} 5. Nb5 {[%emt 0:00:10]} d5 {[%emt 0:00:07]} 6. cxd5 {[%emt 0:00:26]} Qa5+ {[%emt 0:03:42]} 7. N5c3 {[%emt 0:00:29]} b5 {[%emt 0:00:11]} 8. Nd2 {[%emt 0:10:32]} b4 {[%emt 0:01:34]} 9. Nce4 {[%emt 0:10:17]} Nxe4 {[%emt 0:01:46]} 10. Nxe4 {[%emt 0:00:12]} Bb7 {[%emt 0:00:05]} 11. Nd2 {[%emt 0:07:11]} Qxd5 {[%emt 0:22:07]} 12. e4 Qd7 {[%emt 0:00:41]} 13. Be2 {[%emt 0:11:05]} Bc5 {[%emt 0:02:29]} 14. Nb3 {[%emt 0:04:22]} Qxd1+ {[%emt 0:02:43]} 15. Bxd1 {[%emt 0:00:13]} Bb6 {[%emt 0:00:14]} 16. O-O {[%emt 0:03:38]} O-O {[%emt 0:04:02]} 17. Re1 {[%emt 0:01:05]} Rd8 {[%emt 0:06:01]} 18. Nd2 {[%emt 0:08:18]} Nc6 {[%emt 0:08:38]} 19. Nc4 {[%emt 0:02:08]} Bc7 {[%emt 0:00:15]} 20. Be3 {[%emt 0:01:16]} Nd4 {[%emt 0:00:41]} 21. Rc1 {[%emt 0:03:12]} f6 {[%emt 0:15:36]} 22. f3 {[%emt 0:05:47]} Rac8 {[%emt 0:01:40]} 23. Bb3 {[%emt 0:06:02]} Kf8 {[%emt 0:01:01]} 24. Kf2 {[%emt 0:01:05]} Ba6 {[%emt 0:02:41]} 25. Red1 {[%emt 0:02:36]} Bb5 {[%emt 0:04:17]} 26. Nd2 {[%emt 0:09:21]} Bb6 {[%emt 0:01:53]} 27. Bc4 {[%emt 0:04:20]} Ba4 {[%emt 0:06:36]} 28. b3 {[%emt 0:01:10]} Be8 {[%emt 0:01:00]} 29. Nf1 {[%emt 0:00:57]} a5 {[%emt 0:01:53]} 30. Ba6 Rxc1 {[%emt 0:06:45]} 31. Rxc1 {[%emt 0:02:27]} Bf7 {[%emt 0:00:35]} 32. Rc8 {[%emt 0:01:32]} Rxc8 {[%emt 0:02:20]} 33. Bxc8 {[%emt 0:00:07]} a4 {[%emt 0:00:15]} 34. Nd2 {[%emt 0:00:47]} Bc5 {[%emt 0:01:34]} 35. Bxd4 {[%emt 0:01:00]} Bxd4+ {[%emt 0:00:10]} 36. Ke2 {[%emt 0:00:11]} Bc3 {[%emt 0:00:19]} 37. Nc4 {[%emt 0:02:31]} Bxc4+ {[%emt 0:00:18]} 38. bxc4 {[%emt 0:00:02]} b3 0-1

[Event "58th Akiba Rubinstein C 2022"]
[Site "Polanica-Zdroj"]
[Date "2022.08.16"]
[Round "4.3"]
[White "Gromada, Andrzej"]
[Black "Gromczak, Dariusz"]
[Result "0-1"]
[ECO "A04"]
[WhiteElo "1680"]
[BlackElo "1906"]
[Annotator "NA RC"]
[PlyCount "101"]
[EventDate "2022.08.13"]
[EventCountry "POL"]
[SourceTitle "playchess.com"]
[Source "ChessBase"]
[SourceQuality "1"]
[TimeControl "40/5400+30:1800+30"]

1. Nf3 {[%emt 0:00:07]} g6 {[%emt 0:00:16]} 2. e4 {[%emt 0:01:37]} Bg7 {[%emt 0:00:20]} 3. d4 {[%emt 0:00:13]} e6 {[%emt 0:02:09]} 4. Be2 {[%emt 0:04:47]} Ne7 {[%emt 0:00:18]} 5. O-O {[%emt 0:01:11]} d5 {[%emt 0:00:32]} 6. Nc3 {[%emt 0:02:19]} O-O {[%emt 0:06:21]} 7. Bg5 {[%emt 0:03:37]} f6 {[%emt 0:01:46]} 8. Be3 {[%emt 0:02:53]} f5 {[%emt 0:05:27]} 9. exd5 {[%emt 0:02:19]} exd5 {[%emt 0:00:41]} 10. Ne5 f4 {[%emt 0:03:52]} 11. Bc1 {[%emt 0:07:13]} c5 {[%emt 0:00:25]} 12. Nf3 {[%emt 0:01:26]} cxd4 {[%emt 0:07:14]} 13. Nb5 {[%emt 0:01:09]} Nbc6 {[%emt 0:00:55]} 14. Nbxd4 {[%emt 0:00:09]} Nxd4 {[%emt 0:05:55]} 15. Nxd4 {[%emt 0:00:08]} Nc6 16. Nxc6 {[%emt 0:06:24]} bxc6 {[%emt 0:01:21]} 17. c3 {[%emt 0:00:05]} Rb8 {[%emt 0:07:35]} 18. Qa4 {[%emt 0:04:30]} Qc7 {[%emt 0:00:33]} 19. Bf3 {[%emt 0:03:27]} Bd7 {[%emt 0:09:19]} 20. Re1 {[%emt 0:01:27]} g5 {[%emt 0:00:27]} 21. h3 {[%emt 0:00:46]} Rfe8 {[%emt 0:03:03]} 22. Rxe8+ {[%emt 0:01:13]} Bxe8 {[%emt 0:00:26]} 23. Qd1 {[%emt 0:01:59]} Bf7 {[%emt 0:01:49]} 24. Bh5 {[%emt 0:05:13]} Bxh5 {[%emt 0:03:30]} 25. Qxh5 {[%emt 0:00:03]} h6 {[%emt 0:04:26]} 26. Rb1 Qf7 {[%emt 0:05:07]} 27. Qf3 {[%emt 0:07:01]} Qf5 {[%emt 0:01:53]} 28. Ra1 {[%emt 0:00:24]} Qe4 {[%emt 0:03:16]} 29. Qxe4 {[%emt 0:09:42]} dxe4 {[%emt 0:00:22]} 30. Kf1 {[%emt 0:00:04]} Kf7 {[%emt 0:01:18]} 31. a4 {[%emt 0:01:42]} a5 {[%emt 0:01:51]} 32. Ke2 {[%emt 0:01:51]} Ke6 {[%emt 0:01:06]} 33. Kd2 {[%emt 0:03:42]} Bf8 {[%emt 0:01:06]} 34. Kc2 {[%emt 0:00:37]} Bc5 {[%emt 0:00:29]} 35. g3 {[%emt 0:00:52]} Ke5 {[%emt 0:02:59]} 36. b4 {[%emt 0:03:03]} axb4 {[%emt 0:02:25]} 37. cxb4 {[%emt 0:00:02]} Bxf2 {[%emt 0:02:46]} 38. gxf4+ {[%emt 0:00:41]} gxf4 {[%emt 0:00:03]} 39. Bd2 {[%emt 0:00:00]} Bd4 {[%emt 0:00:00]} 40. Bc3 {[%emt 0:00:00]} Rxb4 {[%emt 0:00:00]} 41. Bxd4+ {[%emt 0:04:22]} Kxd4 {[%emt 0:05:38]} 42. a5 {[%emt 0:00:01]} Rb7 {[%emt 0:06:14]} 43. a6 {[%emt 0:00:24]} Ra7 44. Kd2 {[%emt 0:07:38]} c5 {[%emt 0:00:23]} 45. h4 {[%emt 0:01:03]} c4 {[%emt 0:02:34]} 46. Ra4 {[%emt 0:00:50]} f3 {[%emt 0:01:35]} 47. Ra3 {[%emt 0:01:46]} c3+ {[%emt 0:00:41]} 48. Rxc3 {[%emt 0:02:22]} Rxa6 {[%emt 0:00:03]} 49. Rc8 {[%emt 0:00:17]} Ra7 50. Rc3 Ra6 51. Rc8 0-1

[Event "58th Akiba Rubinstein C 2022"]
[Site "Polanica-Zdroj"]
[Date "2022.08.16"]
[Round "4.4"]
[White "Zowada, Kazimierz"]
[Black "Mazalon, Mariusz"]
[Result "1/2-1/2"]
[ECO "A45"]
[WhiteElo "2041"]
[BlackElo "1994"]
[Annotator "NA RC"]
[PlyCount "87"]
[EventDate "2022.08.13"]
[EventCountry "POL"]
[SourceTitle "playchess.com"]
[Source "ChessBase"]
[SourceQuality "1"]
[TimeControl "40/5400+30:1800+30"]

1. d4 {[%emt 0:00:30]} Nf6 {[%emt 0:00:30]} 2. Bg5 {[%emt 0:00:16]} e6 {[%emt 0:01:17]} 3. e4 {[%emt 0:01:21]} h6 {[%emt 0:00:17]} 4. Bxf6 {[%emt 0:00:11]} Qxf6 {[%emt 0:00:08]} 5. Nf3 {[%emt 0:00:53]} b6 {[%emt 0:07:03]} 6. Bd3 {[%emt 0:00:37]} Bb7 {[%emt 0:00:15]} 7. O-O {[%emt 0:00:25]} g6 {[%emt 0:02:58]} 8. Qe2 {[%emt 0:02:03]} d6 {[%emt 0:04:31]} 9. c4 {[%emt 0:01:57]} Bg7 {[%emt 0:00:14]} 10. Nc3 {[%emt 0:00:19]} O-O {[%emt 0:00:51]} 11. Rad1 {[%emt 0:08:57]} Nd7 {[%emt 0:02:05]} 12. Bc2 {[%emt 0:01:23]} Qe7 {[%emt 0:08:29]} 13. Rfe1 {[%emt 0:01:13]} a6 {[%emt 0:03:14]} 14. Qe3 {[%emt 0:02:47]} c6 {[%emt 0:22:25]} 15. e5 {[%emt 0:03:33]} d5 {[%emt 0:08:41]} 16. cxd5 {[%emt 0:00:23]} cxd5 {[%emt 0:00:26]} 17. h4 {[%emt 0:01:18]} Rfc8 {[%emt 0:04:23]} 18. h5 {[%emt 0:03:30]} g5 {[%emt 0:05:03]} 19. Nh2 {[%emt 0:00:47]} b5 {[%emt 0:02:44]} 20. Qd3 {[%emt 0:02:00]} Nf8 {[%emt 0:00:17]} 21. Rd2 {[%emt 0:06:47]} Rc7 {[%emt 0:12:17]} 22. Qg3 {[%emt 0:07:01]} Rac8 {[%emt 0:00:26]} 23. a3 {[%emt 0:01:14]} f5 {[%emt 0:03:50]} 24. exf6 {[%emt 0:01:55]} Qxf6 {[%emt 0:00:02]} 25. Ng4 {[%emt 0:01:07]} Qf4 {[%emt 0:00:22]} 26. Qxf4 {[%emt 0:03:39]} gxf4 {[%emt 0:00:54]} 27. Bd1 {[%emt 0:00:30]} Bc6 {[%emt 0:04:13]} 28. Ne5 {[%emt 0:03:45]} Be8 {[%emt 0:00:16]} 29. Bg4 {[%emt 0:00:19]} a5 {[%emt 0:00:35]} 30. Ng6 {[%emt 0:06:02]} Bxg6 {[%emt 0:00:30]} 31. hxg6 {[%emt 0:00:08]} b4 {[%emt 0:00:18]} 32. axb4 {[%emt 0:00:55]} axb4 {[%emt 0:00:02]} 33. Na4 {[%emt 0:04:29]} Rc1 {[%emt 0:00:36]} 34. Kf1 {[%emt 0:05:43]} Rxe1+ {[%emt 0:00:23]} 35. Kxe1 {[%emt 0:00:07]} Rc4 {[%emt 0:00:10]} 36. Nc5 {[%emt 0:00:50]} Rxd4 {[%emt 0:01:27]} 37. Rxd4 {[%emt 0:02:20]} Bxd4 {[%emt 0:00:03]} 38. Nxe6 {[%emt 0:00:32]} Bxb2 {[%emt 0:03:11]} 39. Nxf4 {[%emt 0:00:56]} Kg7 {[%emt 0:00:35]} 40. Bf5 {[%emt 0:01:20]} Kf6 {[%emt 0:00:00]} 41. g4 {[%emt 0:00:28]} Kg5 {[%emt 0:03:26]} 42. Nxd5 {[%emt 0:03:18]} Nxg6 43. Kd2 {[%emt 0:04:26]} b3 {[%emt 0:05:16]} 44. f3 1/2-1/2

[Event "58th Akiba Rubinstein C 2022"]
[Site "Polanica-Zdroj"]
[Date "2022.08.16"]
[Round "4.5"]
[White "fainberg, Boris"]
[Black "Michalik, Marek"]
[Result "1-0"]
[ECO "D38"]
[WhiteElo "2015"]
[BlackElo "1742"]
[Annotator "NA RC"]
[PlyCount "86"]
[EventDate "2022.08.13"]
[EventCountry "POL"]
[SourceTitle "playchess.com"]
[Source "ChessBase"]
[SourceQuality "1"]
[TimeControl "40/5400+30:1800+30"]

1. d4 {[%emt 0:00:02]} Nf6 {[%emt 0:00:10]} 2. c4 {[%emt 0:00:04]} e6 {[%emt 0:00:10]} 3. Nf3 {[%emt 0:00:06]} d5 {[%emt 0:00:17]} 4. Nc3 {[%emt 0:00:12]} Bb4 {[%emt 0:00:12]} 5. e3 {[%emt 0:00:15]} O-O {[%emt 0:00:23]} 6. Bd3 {[%emt 0:00:14]} dxc4 {[%emt 0:00:49]} 7. Bxc4 {[%emt 0:00:02]} Ne4 {[%emt 0:01:25]} 8. Qc2 {[%emt 0:02:38]} Ng5 {[%emt 0:03:18]} 9. Ne5 {[%emt 0:11:04]} f6 {[%emt 0:01:53]} 10. Nd3 {[%emt 0:00:10]} Nc6 {[%emt 0:04:09]} 11. Nf4 {[%emt 0:03:51]} Kh8 {[%emt 0:03:38]} 12. h4 {[%emt 0:04:40]} Nf7 {[%emt 0:00:27]} 13. Bxe6 {[%emt 0:02:32]} Qe7 {[%emt 0:00:38]} 14. Bxc8 {[%emt 0:02:16]} Nxd4 {[%emt 0:05:42]} 15. Qd1 {[%emt 0:05:33]} Nb5 {[%emt 0:02:55]} 16. Nfd5 {[%emt 0:10:58]} Nxc3 {[%emt 0:02:57]} 17. bxc3 {[%emt 0:01:55]} Bxc3+ {[%emt 0:01:13]} 18. Nxc3 {[%emt 0:04:46]} Raxc8 {[%emt 0:00:58]} 19. Qb3 {[%emt 0:02:55]} Ne5 {[%emt 0:01:54]} 20. Nd5 {[%emt 0:05:34]} Qe6 {[%emt 0:03:39]} 21. Bb2 {[%emt 0:06:23]} Qa6 {[%emt 0:06:29]} 22. Bxe5 {[%emt 0:02:22]} fxe5 {[%emt 0:00:14]} 23. h5 {[%emt 0:01:06]} Qa5+ {[%emt 0:03:09]} 24. Kf1 Qa6+ {[%emt 0:04:29]} 25. Kg1 {[%emt 0:11:54]} Qe2 {[%emt 0:09:21]} 26. Rf1 {[%emt 0:00:44]} Rce8 27. Nc3 {[%emt 0:07:04]} Qd3 {[%emt 0:06:37]} 28. Rd1 {[%emt 0:05:01]} Qf5 {[%emt 0:00:26]} 29. Rd2 {[%emt 0:03:27]} Re6 {[%emt 0:05:49]} 30. Qd1 {[%emt 0:01:25]} e4 {[%emt 0:03:24]} 31. Rh4 {[%emt 0:01:23]} g5 {[%emt 0:04:42]} 32. hxg6 {[%emt 0:00:36]} Rxg6 {[%emt 0:01:37]} 33. g3 {[%emt 0:01:55]} Qg5 {[%emt 0:09:00]} 34. Rf4 {[%emt 0:00:53]} Rxf4 {[%emt 0:02:41]} 35. exf4 {[%emt 0:01:10]} Qxf4 {[%emt 0:00:15]} 36. Rd8+ {[%emt 0:00:17]} Kg7 {[%emt 0:00:17]} 37. Qd4+ {[%emt 0:01:09]} Kh6 {[%emt 0:01:30]} 38. Nxe4 {[%emt 0:01:08]} Qc1+ {[%emt 0:04:59]} 39. Kg2 {[%emt 0:00:28]} b6 {[%emt 0:00:34]} 40. Qe5 {[%emt 0:00:00]} a5 {[%emt 0:00:00]} 41. Rd5 {[%emt 0:01:23]} Qc6 {[%emt 0:01:54]} 42. Rd8 Qc1 43. Rd5 Qc6 1-0

[Event "58th Akiba Rubinstein C 2022"]
[Site "Polanica-Zdroj"]
[Date "2022.08.16"]
[Round "4.10"]
[White "Kruczynski, Marek"]
[Black "Uscinski, Marek"]
[Result "1/2-1/2"]
[ECO "B12"]
[WhiteElo "1651"]
[BlackElo "1824"]
[Annotator "NA RC"]
[PlyCount "45"]
[EventDate "2022.08.13"]
[EventCountry "POL"]
[SourceTitle "playchess.com"]
[Source "ChessBase"]
[SourceQuality "1"]
[TimeControl "40/5400+30:1800+30"]

1. e4 {[%emt 0:00:09]} c6 {[%emt 0:00:15]} 2. d4 {[%emt 0:00:22]} d5 {[%emt 0:00:07]} 3. e5 {[%emt 0:00:09]} Bf5 {[%emt 0:00:12]} 4. h4 {[%emt 0:00:32]} h5 {[%emt 0:02:37]} 5. Bg5 {[%emt 0:01:52]} Qb6 {[%emt 0:00:30]} 6. Bd3 {[%emt 0:02:42]} Qxd4 {[%emt 0:07:16]} 7. Nf3 {[%emt 0:01:05]} Qg4 {[%emt 0:00:45]} 8. Bxf5 {[%emt 0:05:29]} Qxf5 {[%emt 0:00:04]} 9. c4 {[%emt 0:01:45]} Qe4+ {[%emt 0:06:30]} 10. Be3 {[%emt 0:00:51]} Qxc4 {[%emt 0:00:48]} 11. Nbd2 {[%emt 0:05:21]} Qd3 {[%emt 0:03:45]} 12. Rc1 {[%emt 0:01:27]} e6 {[%emt 0:02:42]} 13. Rc3 {[%emt 0:01:16]} Qa6 {[%emt 0:01:27]} 14. a3 {[%emt 0:05:21]} Nd7 {[%emt 0:02:44]} 15. b4 {[%emt 0:01:50]} Ne7 {[%emt 0:02:40]} 16. Qc1 {[%emt 0:09:49]} Ng6 17. b5 {[%emt 0:23:05]} Qxb5 {[%emt 0:05:46]} 18. Nd4 {[%emt 0:00:08]} Qa6 {[%emt 0:00:26]} 19. Nxc6 b6 {[%emt 0:10:58]} 20. f4 {[%emt 0:09:56]} Bc5 {[%emt 0:01:16]} 21. Nb3 Bxe3 {[%emt 0:14:44]} 22. Qxe3 {[%emt 0:03:09]} O-O {[%emt 0:01:11]} 23. g4 1/2-1/2

[Event "58th Akiba Rubinstein C 2022"]
[Site "Polanica-Zdroj"]
[Date "2022.08.16"]
[Round "4.11"]
[White "Krupa, Jerzy"]
[Black "Chmielewski, Miroslaw"]
[Result "1-0"]
[ECO "C50"]
[WhiteElo "1771"]
[BlackElo "1571"]
[Annotator "NA"]
[PlyCount "32"]
[EventDate "2022.08.13"]
[EventCountry "POL"]
[SourceTitle "playchess.com"]
[Source "ChessBase"]
[SourceQuality "1"]
[TimeControl "40/5400+30:1800+30"]

1. e4 {[%emt 0:00:13]} e5 {[%emt 0:01:46]} 2. Nf3 {[%emt 0:00:06]} Nc6 {[%emt 0:00:32]} 3. Bc4 {[%emt 0:00:48]} Bc5 {[%emt 0:00:17]} 4. O-O {[%emt 0:00:24]} d6 {[%emt 0:00:21]} 5. c3 {[%emt 0:00:48]} Nf6 {[%emt 0:00:51]} 6. d3 {[%emt 0:00:58]} h6 {[%emt 0:03:31]} 7. Nbd2 {[%emt 0:04:14]} O-O {[%emt 0:00:39]} 8. b4 {[%emt 0:01:28]} Bb6 {[%emt 0:00:09]} 9. a4 {[%emt 0:00:04]} a5 {[%emt 0:03:55]} 10. b5 {[%emt 0:02:33]} Ne7 {[%emt 0:00:22]} 11. Bb3 {[%emt 0:05:44]} Ng6 {[%emt 0:11:23]} 12. Nc4 {[%emt 0:03:28]} Bc5 {[%emt 0:04:20]} 13. d4 {[%emt 0:08:17]} exd4 14. cxd4 {[%emt 0:00:18]} Bb4 {[%emt 0:02:23]} 15. Qd3 {[%emt 0:24:15]} Ne7 {[%emt 0:22:27]} 16. Ne3 {[%emt 0:00:30]} c5 {[%emt 0:35:26]} 1-0

[Event "58th Akiba Rubinstein C 2022"]
[Site "Polanica-Zdroj"]
[Date "2022.08.16"]
[Round "4.12"]
[White "Wziatek, Marek"]
[Black "Chubar, Vladimir"]
[Result "1-0"]
[ECO "A10"]
[WhiteElo "1617"]
[BlackElo "1809"]
[Annotator "NA RC"]
[PlyCount "53"]
[EventDate "2022.08.13"]
[EventCountry "POL"]
[SourceTitle "playchess.com"]
[Source "ChessBase"]
[SourceQuality "1"]
[TimeControl "40/5400+30:1800+30"]

1. c4 {[%emt 0:00:03]} g6 {[%emt 0:00:27]} 2. Nc3 {[%emt 0:00:13]} Bg7 {[%emt 0:00:05]} 3. g3 {[%emt 0:00:14]} e5 {[%emt 0:01:53]} 4. e3 Nc6 {[%emt 0:00:14]} 5. Nge2 {[%emt 0:01:14]} d6 {[%emt 0:00:39]} 6. d4 {[%emt 0:00:34]} Bg4 {[%emt 0:01:11]} 7. d5 {[%emt 0:02:55]} Bf3 {[%emt 0:01:35]} 8. Rg1 {[%emt 0:00:01]} Nce7 {[%emt 0:01:09]} 9. e4 {[%emt 0:01:13]} f5 {[%emt 0:01:21]} 10. Qd3 {[%emt 0:00:30]} Bh5 {[%emt 0:05:07]} 11. f3 {[%emt 0:04:50]} Nf6 {[%emt 0:00:47]} 12. h3 {[%emt 0:00:58]} fxe4 {[%emt 0:09:07]} 13. Nxe4 {[%emt 0:00:36]} Nxe4 {[%emt 0:01:11]} 14. Qxe4 {[%emt 0:00:13]} g5 {[%emt 0:00:22]} 15. Bxg5 {[%emt 0:00:40]} O-O {[%emt 0:00:37]} 16. Qh4 {[%emt 0:00:53]} Rxf3 {[%emt 0:03:40]} 17. Qxh5 {[%emt 0:01:16]} Rf7 {[%emt 0:00:13]} 18. Bg2 {[%emt 0:01:32]} c6 {[%emt 0:00:27]} 19. Be4 {[%emt 0:01:32]} Qb6 {[%emt 0:01:15]} 20. Bxh7+ Kf8 {[%emt 0:00:07]} 21. O-O-O {[%emt 0:04:13]} cxd5 {[%emt 0:00:17]} 22. Rgf1 {[%emt 0:00:56]} Nf5 {[%emt 0:16:14]} 23. Rxf5 {[%emt 0:00:38]} Rxf5 {[%emt 0:12:57]} 24. Bxf5 {[%emt 0:00:21]} Qf2 {[%emt 0:11:36]} 25. Be6 {[%emt 0:01:06]} Qb6 26. Bf5 Qf2 27. Be6 1-0

[Event "58th Akiba Rubinstein C 2022"]
[Site "Polanica-Zdroj"]
[Date "2022.08.16"]
[Round "4.13"]
[White "Twarogiel, Tadeusz"]
[Black "Bartczak, Hanna"]
[Result "1-0"]
[ECO "D02"]
[WhiteElo "1767"]
[BlackElo "1479"]
[Annotator "NA RC"]
[PlyCount "116"]
[EventDate "2022.08.13"]
[EventCountry "POL"]
[SourceTitle "playchess.com"]
[Source "ChessBase"]
[SourceQuality "1"]
[TimeControl "40/5400+30:1800+30"]

1. d4 {[%emt 0:00:04]} d5 {[%emt 0:00:04]} 2. Nf3 {[%emt 0:00:03]} Nf6 {[%emt 0:00:16]} 3. c3 {[%emt 0:00:11]} c6 {[%emt 0:00:50]} 4. Bg5 {[%emt 0:00:12]} Bf5 {[%emt 0:04:16]} 5. Qb3 {[%emt 0:00:17]} Qc8 {[%emt 0:02:38]} 6. Nbd2 {[%emt 0:00:33]} Nbd7 {[%emt 0:01:07]} 7. Nh4 {[%emt 0:02:52]} Be6 {[%emt 0:02:04]} 8. Nhf3 {[%emt 0:01:50]} h6 {[%emt 0:00:16]} 9. Bh4 {[%emt 0:00:10]} Bf5 {[%emt 0:00:18]} 10. e3 {[%emt 0:00:17]} e6 {[%emt 0:00:30]} 11. Bg3 {[%emt 0:01:11]} Be7 {[%emt 0:03:05]} 12. Be2 {[%emt 0:01:51]} O-O {[%emt 0:03:31]} 13. h3 {[%emt 0:00:35]} Bd8 {[%emt 0:00:22]} 14. c4 {[%emt 0:06:01]} Bc7 {[%emt 0:00:36]} 15. Bxc7 {[%emt 0:00:20]} Qxc7 {[%emt 0:00:05]} 16. Rc1 {[%emt 0:00:10]} Qb6 {[%emt 0:05:12]} 17. O-O {[%emt 0:02:36]} Rfc8 {[%emt 0:03:52]} 18. Rc3 {[%emt 0:06:43]} Ne4 {[%emt 0:05:24]} 19. Nxe4 {[%emt 0:00:47]} Bxe4 {[%emt 0:01:22]} 20. Nd2 {[%emt 0:00:22]} Bg6 {[%emt 0:01:48]} 21. Rfc1 Nf6 {[%emt 0:01:36]} 22. Bf3 {[%emt 0:05:16]} Qxb3 {[%emt 0:04:17]} 23. Rxb3 {[%emt 0:02:51]} Rab8 {[%emt 0:04:23]} 24. Rbc3 {[%emt 0:02:10]} Kf8 {[%emt 0:03:51]} 25. b4 {[%emt 0:01:13]} Ke7 {[%emt 0:03:12]} 26. cxd5 {[%emt 0:09:09]} exd5 {[%emt 0:04:58]} 27. Nb3 {[%emt 0:01:50]} Ne4 {[%emt 0:01:17]} 28. Bxe4 {[%emt 0:00:36]} Bxe4 {[%emt 0:02:11]} 29. b5 {[%emt 0:08:26]} Kd7 {[%emt 0:01:17]} 30. Nc5+ {[%emt 0:01:03]} Kd6 {[%emt 0:00:40]} 31. Nxe4+ {[%emt 0:00:59]} dxe4 {[%emt 0:00:09]} 32. Kf1 {[%emt 0:07:22]} Rc7 {[%emt 0:00:10]} 33. bxc6 {[%emt 0:00:33]} bxc6 {[%emt 0:01:19]} 34. R1c2 {[%emt 0:00:44]} Rb1+ {[%emt 0:00:52]} 35. Ke2 {[%emt 0:01:21]} Rg1 {[%emt 0:00:28]} 36. g3 {[%emt 0:00:12]} Rb1 {[%emt 0:01:56]} 37. Rc5 {[%emt 0:00:17]} Rb5 {[%emt 0:00:18]} 38. Kd2 {[%emt 0:02:37]} g6 {[%emt 0:00:42]} 39. g4 {[%emt 0:04:48]} f6 {[%emt 0:01:48]} 40. Ke2 {[%emt 0:00:00]} Rxc5 {[%emt 0:00:00]} 41. Rxc5 {[%emt 0:04:59]} Rb7 {[%emt 0:01:13]} 42. Ra5 {[%emt 0:00:21]} Ke6 {[%emt 0:02:55]} 43. Kf1 {[%emt 0:00:57]} f5 {[%emt 0:00:55]} 44. Kg2 {[%emt 0:00:19]} Kf6 {[%emt 0:00:38]} 45. Kg3 {[%emt 0:01:20]} fxg4 {[%emt 0:04:36]} 46. hxg4 g5 47. Ra6 {[%emt 0:02:16]} Rc7 {[%emt 0:02:27]} 48. f3 {[%emt 0:00:47]} exf3 {[%emt 0:00:44]} 49. Kxf3 {[%emt 0:00:14]} Ke6 {[%emt 0:01:00]} 50. Ke4 {[%emt 0:04:37]} Kf7 {[%emt 0:04:34]} 51. Kf5 {[%emt 0:00:41]} Kg7 {[%emt 0:02:40]} 52. a4 {[%emt 0:01:44]} Kf7 {[%emt 0:05:42]} 53. e4 {[%emt 0:02:40]} Kg7 {[%emt 0:01:41]} 54. e5 {[%emt 0:02:36]} Rf7+ {[%emt 0:01:24]} 55. Ke6 {[%emt 0:00:13]} Rf4 {[%emt 0:00:53]} 56. Rxc6 {[%emt 0:07:37]} Rxd4 {[%emt 0:00:30]} 57. Rc7+ {[%emt 0:00:14]} Kg6 {[%emt 0:00:07]} 58. Rxa7 {[%emt 0:00:06]} Rxg4 {[%emt 0:00:12]} 1-0

[Event "58th Akiba Rubinstein C 2022"]
[Site "Polanica-Zdroj"]
[Date "2022.08.17"]
[Round "5.2"]
[White "Shilov, Sergej"]
[Black "fainberg, Boris"]
[Result "1/2-1/2"]
[ECO "E21"]
[WhiteElo "2048"]
[BlackElo "2015"]
[Annotator "NA RC"]
[PlyCount "104"]
[EventDate "2022.08.13"]
[EventCountry "POL"]
[SourceTitle "playchess.com"]
[Source "ChessBase"]
[SourceQuality "1"]
[TimeControl "40/5400+30:1800+30"]

1. d4 {[%emt 0:00:16]} Nf6 {[%emt 0:00:21]} 2. Nf3 {[%emt 0:00:33]} e6 {[%emt 0:00:20]} 3. c4 {[%emt 0:00:17]} b6 {[%emt 0:00:25]} 4. Nc3 {[%emt 0:02:36]} Bb4 {[%emt 0:01:15]} 5. g3 {[%emt 0:02:09]} Ba6 {[%emt 0:12:56]} 6. Qb3 {[%emt 0:05:24]} Bxc3+ {[%emt 0:04:47]} 7. Qxc3 {[%emt 0:00:45]} O-O {[%emt 0:07:23]} 8. Bg2 {[%emt 0:03:18]} d5 {[%emt 0:06:24]} 9. b3 {[%emt 0:05:09]} Nbd7 {[%emt 0:12:54]} 10. O-O {[%emt 0:02:22]} Rc8 {[%emt 0:01:54]} 11. cxd5 {[%emt 0:24:01]} exd5 {[%emt 0:00:45]} 12. Re1 {[%emt 0:00:56]} Re8 {[%emt 0:02:16]} 13. Qb2 {[%emt 0:01:42]} c5 {[%emt 0:02:27]} 14. Bg5 {[%emt 0:00:53]} h6 {[%emt 0:02:07]} 15. Bxf6 {[%emt 0:00:25]} Nxf6 {[%emt 0:05:08]} 16. e3 {[%emt 0:00:31]} Bd3 {[%emt 0:01:02]} 17. Ne5 {[%emt 0:05:28]} Be4 {[%emt 0:00:29]} 18. f3 {[%emt 0:00:33]} Bf5 {[%emt 0:00:48]} 19. e4 {[%emt 0:02:38]} Be6 {[%emt 0:03:19]} 20. dxc5 {[%emt 0:03:37]} bxc5 {[%emt 0:04:49]} 21. Rad1 {[%emt 0:00:57]} Qb6 {[%emt 0:00:36]} 22. exd5 {[%emt 0:01:32]} Bxd5 {[%emt 0:03:32]} 23. Qf2 {[%emt 0:00:37]} c4 {[%emt 0:03:06]} 24. Qxb6 {[%emt 0:10:24]} axb6 {[%emt 0:00:04]} 25. bxc4 {[%emt 0:00:06]} Bxc4 {[%emt 0:00:30]} 26. Nxc4 {[%emt 0:00:46]} Rxe1+ {[%emt 0:00:35]} 27. Rxe1 {[%emt 0:00:01]} Rxc4 {[%emt 0:00:08]} 28. Re2 {[%emt 0:00:31]} g5 {[%emt 0:00:50]} 29. Rb2 {[%emt 0:00:26]} Rc1+ {[%emt 0:04:34]} 30. Kf2 {[%emt 0:01:45]} Kg7 {[%emt 0:05:35]} 31. Bf1 {[%emt 0:04:06]} h5 {[%emt 0:02:29]} 32. Be2 {[%emt 0:00:58]} Rc6 {[%emt 0:01:09]} 33. h4 {[%emt 0:02:29]} g4 {[%emt 0:00:47]} 34. fxg4 {[%emt 0:01:24]} Nxg4+ {[%emt 0:00:53]} 35. Bxg4 {[%emt 0:01:15]} hxg4 {[%emt 0:00:08]} 36. Ke3 {[%emt 0:00:19]} Rf6 {[%emt 0:04:13]} 37. Ke4 {[%emt 0:00:37]} Rf3 {[%emt 0:01:38]} 38. Rb3 {[%emt 0:00:32]} Rf2 {[%emt 0:00:43]} 39. a4 {[%emt 0:02:25]} f6 {[%emt 0:05:30]} 40. Rxb6 {[%emt 0:00:00]} Rf3 {[%emt 0:00:00]} 41. Rb1 {[%emt 0:04:26]} Rxg3 {[%emt 0:11:32]} 42. Ra1 {[%emt 0:00:08]} Rh3 {[%emt 0:00:13]} 43. a5 {[%emt 0:02:22]} Rxh4 {[%emt 0:00:10]} 44. a6 {[%emt 0:00:16]} Rh8 {[%emt 0:00:16]} 45. a7 {[%emt 0:00:17]} Ra8 {[%emt 0:00:34]} 46. Kf4 {[%emt 0:00:09]} Kf7 {[%emt 0:00:00]} 47. Ra6 {[%emt 0:00:25]} Ke7 {[%emt 0:02:13]} 48. Kxg4 {[%emt 0:00:31]} Kd8 {[%emt 0:01:43]} 49. Kf5 {[%emt 0:00:26]} Kc7 {[%emt 0:00:07]} 50. Kxf6 {[%emt 0:00:13]} Kb7 {[%emt 0:00:09]} 51. Ra1 {[%emt 0:00:07]} Rxa7 {[%emt 0:00:06]} 52. Rxa7+ {[%emt 0:00:07]} Kxa7 1/2-1/2